Cogmind - Beta 13 @@@ ROGUE MODE // 2024.04.07 @ 14:44:34 Player: RockoDyne Result: Destroyed by Y-54 Guardian with Flak Gun Performance ------------- Evolutions (3) 1500 Regions Visited (6) 1200 Robots Destroyed (77) 385 Value Destroyed (2112) 2112 Prototype IDs (2) 40 Alien Tech Used (0) 0 Bonus (124) 124 TOTAL SCORE: 5361 Bonus ------- Follower Combat Kills 217 Friendly Fire -93 Cogmind --------- Core Integrity 0/700 Matter 300/300 Energy 95/100 System Corruption 6% Temperature Cool (18) Movement Core (800) Ox15 Location -7/Factory Parts ------- > --- POWER (2) -------- (None) > --- PROPULSION (5) --- (None) > --- UTILITY (4) ------ Improved Cooling System High-capacity Storage Unit Dynamic Insulation System > --- WEAPON (2) ------- Heavy Hammer > --- INVENTORY (20) --- High-capacity Storage Unit Large Battery (200) Microactuators Improved Light Armor Plating Improved Light Armor Plating Improved Light Armor Plating Component Analysis Suite Shock Rifle Lightning Gun Autogun Battle Rifle Proton Missile Launcher Grenade Launcher Peak State ------------ > --- POWER ------------ Light Nuclear Core Antimatter Reactor > --- PROPULSION ------- Heavy Treads Backup Propulsion III Backup Propulsion III > --- UTILITY ---------- Backup Plating III Backup Plating III Hardened Light Armor Plating Dynamic Insulation System > --- WEAPON ----------- Battle Rifle Proton Missile Launcher > --- INVENTORY -------- Light Nuclear Core High-capacity Storage Unit Large Battery Component Analysis Suite Grenade Launcher [Rating: 47] Favorites ----------- Power Light Nuclear Core Engine Ion Engine Power Core Light Nuclear Core Reactor Antimatter Reactor Propulsion Light Treads Treads Light Treads Leg Titanium Leg Hover Unit Backup Propulsion III Utility Large Storage Unit Device Dynamic Insulation System Storage Large Storage Unit Hackware Hacking Suite Protection Improved Light Armor Plating Weapon Axe Energy Gun Medium Laser Ballistic Gun Assault Rifle Ballistic Cannon Advanced Assault Cannon Launcher Proton Missile Launcher Impact Weapon Heavy Hammer Slashing Weapon Axe Build | -11 -10 -9 -8 -7 -7 -7 ------- Run | Yrd Mat Mat Mat Fac Was Fac Slots Evolved 6 | . . 2 2 2 . . Power 1 | . . 1 . . . . Propulsion 3 | . . 1 1 1 . . Utility 2 | . . . 1 1 . . Weapon . | . . . . . . . Parts Attached 77 | 6 3 7 18 21 13 9 Power 23 | 1 . 2 7 7 4 2 Engine 10 | 1 . 2 4 1 1 1 Core 12 | . . . 3 6 2 1 Reactor 1 | . . . . . 1 . Propulsion 19 | 2 . 2 5 8 2 . Treads 13 | 2 . 2 5 3 1 . Leg 6 | . . . . 5 1 . Wheel . | . . . . . . . Hover . | . . . . . . . Flight . | . . . . . . . Utility 19 | 1 2 1 3 4 5 3 Device 8 | . 1 1 3 . 2 1 Storage 3 | 1 1 . . . . 1 Processor . | . . . . . . . Hackware 2 | . . . . 2 . . Protection 6 | . . . . 2 3 1 Artifact . | . . . . . . . Weapon 16 | 2 1 2 3 2 2 4 Energy Gun 3 | 1 . 1 . . . 1 Energy Cannon . | . . . . . . . Ballistic Gun 7 | 1 1 . 1 1 1 2 Ballistic Cannon 1 | . . . . 1 . . Launcher 2 | . . . 1 . 1 . Special Weapon . | . . . . . . . Impact Weapon 1 | . . . . . . 1 Slashing Weapon 2 | . . 1 1 . . . Piercing Weapon . | . . . . . . . Special Melee Weapon . | . . . . . . . Unidentified Prototypes . | . . . . . . . Parts Lost 25 | . . . 7 5 6 7 Power 10 | . . . 3 2 1 4 Propulsion 7 | . . . 2 2 2 1 Utility 4 | . . . 1 . 2 1 Weapon 4 | . . . 1 1 1 1 Highest Loss Streak 6 | . . . 4 3 6 5 To Critical Strikes . | . . . . . . . Average Slot Usage (%) 87 | . 94 88 95 96 73 67 Engine 6 | . 14 17 7 3 . . Core 6 | . . . 9 10 7 6 Reactor 1 | . . . . . 5 6 Treads 21 | . 28 25 33 24 5 6 Leg 3 | . . . . 11 1 . Hover 1 | . . . . . 9 . Device 9 | . 8 11 17 . 7 15 Storage 7 | . 14 11 9 7 . 6 Hackware 3 | . . . . 14 1 . Protection 5 | . . . . 7 16 6 Energy Gun 2 | . 14 1 . . . 2 Ballistic Gun 6 | . 14 11 5 1 5 6 Launcher 3 | . . . 3 5 6 4 Slashing Weapon 4 | . . 9 8 5 . . Naked Turns 2 | . . . . . 2 . Heaviest Build 78 | 13 30 36 45 47 47 78 Greatest Support 110 | 40 40 66 90 110 70 70 Greatest Overweight (x) 19 | 2 . . . 2 6 19 Average Overweight (x) . | . . . . . . 1 Largest Inventory Capacity 20 | 8 15 15 15 15 15 20 Average Capacity 13 | 7 9 15 15 15 5 19 Most Carried 15 | 3 7 14 15 15 14 14 Average Carried 10 | 1 5 12 13 14 5 9 Final Capacity 20 | 8 15 15 15 15 5 20 Final Carried 15 | 3 6 14 15 14 5 13 Class Distribution -------------------- 43% | Mutant 36% | Scavenger-Mutant 19% | Hacker-Mutant Dominant Class ---------------- Mutant | -10/Materials Mutant | -9/Materials Mutant | -8/Materials Hacker-Mutant | -7/Factory Scavenger-Mutant | -7/Waste Scavenger-Mutant | -7/Factory Resources | -11 -10 -9 -8 -7 -7 -7 ----------- Run | Yrd Mat Mat Mat Fac Was Fac Matter Collected 1420 | 240 39 128 251 407 120 235 Remotely . | . . . . . . . Salvage Created 3413 | . 81 400 1272 857 . 803 Parts 154 | . 1 28 51 40 . 34 Haulers Intercepted . | . . . . . . . Recyclers Shooed 10 | . 2 . 3 4 . 1 Parts Field Recycled . | . . . . . . . Retrieved Matter . | . . . . . . . Parts Self-Destructed . | . . . . . . . Prevented . | . . . . . . . Kills | -11 -10 -9 -8 -7 -7 -7 ------- Run | Yrd Mat Mat Mat Fac Was Fac Combat Hostiles Destroyed 49 | . 4 10 20 11 . 4 Melee 34 | . . 5 20 9 . . Guns 10 | . 4 4 . . . 2 Cannons 1 | . . . . 1 . . AOE 4 | . . 1 . 1 . 2 Classes Destroyed 10 | . 2 2 4 1 . 1 Worker 4 | . . . . . . 4 Builder 2 | . . . 1 . . 1 Tunneler 1 | . . . 1 . . . Recycler 16 | . . 1 5 5 . 5 Watcher 5 | . . 1 2 1 . 1 Swarmer 17 | . 3 4 7 3 . . Grunt 17 | . 1 6 7 3 . . Sentry 5 | . . . 4 1 . . Hunter 4 | . . . 2 2 . . Programmer 5 | . . . . 2 . 3 Thug 1 | . . . . . . 1 Best Kill Streak 8 | . 3 6 8 3 . 8 Combat Bots Only 8 | . 3 4 8 3 . 2 Max Kills in Single Turn 5 | . 2 1 1 1 . 5 Gunslinging 1 | . 1 . . . . . Exploded 1 | . . 1 . 1 . 1 Melee 1 | . . 1 1 1 . . Uniques/NPCs Destroyed . | . . . . . . . Combat | -11 -10 -9 -8 -7 -7 -7 -------- Run | Yrd Mat Mat Mat Fac Was Fac Hostile Shots Fired 458 | . 19 50 143 99 5 142 Missed 124 | . 6 14 34 31 . 39 Damage Taken 4531 | . 114 352 1273 1073 492 1227 Core 924 | . 20 88 112 134 412 158 Absorbed by Shields . | . . . . . . . Regen/Repaired (Parts) 210 | . . . . 165 35 10 Core Remaining (%) 87 | 100 92 78 79 . . . Volleys Fired 114 | . 17 12 27 25 . 33 Largest 2 | . 2 2 1 2 . 2 Hottest 80 | . 70 65 39 76 . 80 Shots Fired 186 | . 34 15 27 44 . 66 Gun 150 | . 34 15 22 19 . 60 Cannon 20 | . . . . 20 . . Launcher 16 | . . . 5 5 . 6 Special . | . . . . . . . Kinetic 123 | . 17 12 22 39 . 33 Thermal 17 | . 17 . . . . . Explosive . | . . . . . . . Electromagnetic 46 | . . 3 5 5 . 33 Robot Hit Streak 9 | . 5 8 6 6 . 9 Robot Miss Streak 5 | . 4 5 5 3 . 3 Penetration Max . | . . . . . . . Secondary Targets 1 | . 1 . . . . . Max Gunslinging Chain 1 | . 1 . . . . . Shots Hit Robots 183 | . 17 21 56 44 . 45 Core Hits 96 | . 8 12 30 22 . 24 Critical Kills . | . . . . . . . Critical Parts Destroyed . | . . . . . . . Critical Strikes 8 | . 2 . 3 2 . 1 Burn 2 | . 2 . . . . . Blast 1 | . . . . 1 . . Corrupt 1 | . . . . . . 1 Sever 4 | . . . 3 1 . . Melee Attacks 107 | . . 16 58 28 . 5 Impact 5 | . . . . . . 5 Slashing 102 | . . 16 58 28 . . Piercing . | . . . . . . . Sneak Attacks 8 | . . 1 5 2 . . Combat Hostiles . | . . . . . . . Follow-up Attacks . | . . . . . . . Damage Inflicted 5128 | 8 173 667 1978 1289 . 1013 Guns 1177 | . 173 157 148 228 . 471 Cannons 216 | . . . . 216 . . Explosions 848 | . . 114 159 106 . 469 Melee 2873 | . . 396 1671 733 . 73 Ramming 14 | 8 . . . 6 . . Kinetic 1087 | . 47 107 148 444 . 341 Thermal 397 | . 126 114 . . . 157 Explosive . | . . . . . . . Electromagnetic 757 | . . 50 159 106 . 442 Impact 73 | . . . . . . 73 Slashing 2800 | . . 396 1671 733 . . Piercing . | . . . . . . . Highest Corruption 6 | . . . . 2 2 6 Average Corruption 2 | . . . . 1 2 2 Corruption Purged . | . . . . . . . Corruption Blocked . | . . . . . . . Effects 25 | . . . . 12 5 8 Message Errors 5 | . . . . 3 1 1 Matter Fused 3 | . . . . . 1 2 Heat Flow Errors 6 | . . . . 3 1 2 Energy Discharges 1 | . . . . 1 . . Parts Fused 1 | . . . . 1 . . Data Loss (minor) 4 | . . . . 1 1 2 Data Loss (major) 3 | . . . . 2 1 . Alerts 1 | . . . . . . 1 Weapon Failures 1 | . . . . 1 . . Overload Shots . | . . . . . . . Overflow Damage 282 | . . 62 219 1 . . Projectiles . | . . . . . . . Explosions 32 | . . . 32 . . . Melee 250 | . . 62 187 1 . . Knockbacks 2 | . . . . 2 . . Impact . | . . . . . . . Kinetic 2 | . . . . 2 . . Secondary . | . . . . . . . Self-Inflicted Damage 185 | . . . 15 9 . 161 Shots 6 | . . . 1 1 . 4 Rammed 2 | 2 . . . . . . Targets Rammed 3 | 2 . . . 1 . . Kicked 1 | . . . . 1 . . Crushed . | . . . . . . . Highest Temperature 349 | . 110 45 12 180 349 253 Average Temperature 110 | . 47 25 7 43 144 123 Received Heat Transfer 870 | . 24 90 414 168 27 147 Effects 2 | . . . . . 1 1 Shutdowns 1 | . . . . . 1 . Energy Bleed 1 | . . . . . . 1 Siege Activations . | . . . . . . . Robots Corrupted . | . . . . . . . Combat Hostiles . | . . . . . . . Parts Fried 3 | . . . . 1 . 2 Impact Corruptions . | . . . . . . . Robots Melted . | . . . . . . . Combat Hostiles . | . . . . . . . Parts Melted 3 | . 2 . . . . 1 Heat Transferred 668 | . 518 50 . . . 100 Parts Sabotaged . | . . . . . . . Parts Stolen . | . . . . . . . Parts Stripped . | . . . . . . . Power Chain Reactions 1 | . . 1 . . . . Alert | -11 -10 -9 -8 -7 -7 -7 ------- Run | Yrd Mat Mat Mat Fac Was Fac Peak Influence 353 | . 185 262 353 311 63 298 Initial 148 | . . . 49 148 48 . Average 124 | . 73 96 221 156 5 106 Maximum Alert Level 1 | . . 1 1 1 . 1 Low Security (%) 75 | 100 100 78 46 74 100 77 Level 1 24 | . . 21 53 25 . 22 Level 2 . | . . . . . . . Level 3 . | . . . . . . . Level 4 . | . . . . . . . Level 5 . | . . . . . . . High Security . | . . . . . . . Max Security . | . . . . . . . Squads Dispatched 8 | . 1 2 3 2 . . Investigation 4 | . 1 . 2 1 . . Extermination 1 | . . . . 1 . . Reinforcement 3 | . . 2 1 . . . Assault . | . . . . . . . Garrison . | . . . . . . . Intercept . | . . . . . . . Searches Triggered . | . . . . . . . Construction Impeded . | . . . . . . . Haulers Reinforced . | . . . . . . . Active Scanning Responses . | . . . . . . . Cargo Convoy Interrupts . | . . . . . . . Stealth | -11 -10 -9 -8 -7 -7 -7 --------- Run | Yrd Mat Mat Mat Fac Was Fac Distress Signals 4 | . . 1 3 . . . Communications Jammed . | . . . . . . . Distress Signals . | . . . . . . . Times Spotted 89 | . 8 15 37 17 2 10 Peak Tracking Total 6 | . 3 5 6 3 1 3 Tactical Retreats 9 | . 2 1 4 2 . . Traps | -11 -10 -9 -8 -7 -7 -7 ------- Run | Yrd Mat Mat Mat Fac Was Fac Traps Triggered 3 | . . . 1 2 . . Indirectly . | . . . . . . . Trap Hack Attempts . | . . . . . . . Triggered . | . . . . . . . Disarmed . | . . . . . . . Reprogrammed 4 | . 4 . . . . . Reused 4 | . 4 . . . . . Traps Extracted . | . . . . . . . Installed . | . . . . . . . Triggered 4 | . 4 . . . . . Machines | -11 -10 -9 -8 -7 -7 -7 ---------- Run | Yrd Mat Mat Mat Fac Was Fac Machines Disabled 12 | . . . 2 4 . 6 Max in Single Turn 2 | . . . 1 2 . 2 Machines Repaired . | . . . . . . . Machines Dismantled . | . . . . . . . Machines Sabotaged . | . . . . . . . Overloaded Fab Kills . | . . . . . . . Hacking | -11 -10 -9 -8 -7 -7 -7 --------- Run | Yrd Mat Mat Mat Fac Was Fac Machines Accessed 12 | . 4 . 3 5 . . Terminals 5 | . 2 . 1 2 . . Fabricators . | . . . . . . . Repair Stations 2 | . . . 1 1 . . Recycling Units 4 | . 2 . 1 1 . . Scanalyzers 1 | . . . . 1 . . Garrison Access . | . . . . . . . Total Hacks 24 | . 7 . 7 10 . . Successful 16 | . 5 . 3 8 . . Failed 8 | . 2 . 4 2 . . Catastrophic 1 | . 1 . . . . . Database Lockouts . | . . . . . . . Manual . | . . . . . . . Terminals 12 | . 5 . 3 4 . . Fabricators . | . . . . . . . Repair Stations 5 | . . . 3 2 . . Recycling Units 4 | . 2 . 1 1 . . Scanalyzers 3 | . . . . 3 . . Garrison Access . | . . . . . . . Terminal Hacks 7 | . 3 . 1 3 . . Record 3 | . . . 1 2 . . Prototype ID Bank 1 | . 1 . . . . . Emergency Access Points 1 | . . . . 1 . . Locate Traps 1 | . 1 . . . . . Reprogram Traps 1 | . 1 . . . . . Fabricator Hacks . | . . . . . . . Repair Station Hacks 3 | . . . 1 2 . . Scan Component 2 | . . . 1 1 . . Repair 1 | . . . . 1 . . Recycling Unit Hacks 4 | . 2 . 1 1 . . Report Inventory 4 | . 2 . 1 1 . . Scanalyzer 2 | . . . . 2 . . Insert Component 1 | . . . . 1 . . Analyze 1 | . . . . 1 . . Garrison Access Hacks . | . . . . . . . Unauthorized Hacks . | . . . . . . . Terminals . | . . . . . . . Fabricators . | . . . . . . . Repair Stations . | . . . . . . . Recycling Units . | . . . . . . . Scanalyzers . | . . . . . . . Garrison Access . | . . . . . . . Data Cores Recovered . | . . . . . . . Used . | . . . . . . . Hacking Detections 7 | . 2 . 2 3 . . Full Trace Events 3 | . 1 . 1 1 . . Feedback Events . | . . . . . . . Feedback Blocked . | . . . . . . . Robot Schematics Acquired . | . . . . . . . Robots Built . | . . . . . . . Authchips . | . . . . . . . Time . | . . . . . . . Total Robot Build Rating . | . . . . . . . Part Schematics Acquired . | . . . . . . . Parts Built . | . . . . . . . Authchips . | . . . . . . . Time . | . . . . . . . Total Part Build Rating . | . . . . . . . Parts Repaired 1 | . . . . 1 . . Time 19 | . . . . 19 . . Parts Recycled . | . . . . . . . Recycled Matter . | . . . . . . . Retrieved Matter . | . . . . . . . Retrieved Components . | . . . . . . . Parts Scanalyzed 1 | . . . . 1 . . Part Schematics Acquired . | . . . . . . . Parts Damaged . | . . . . . . . Bothacking | -11 -10 -9 -8 -7 -7 -7 ------------ Run | Yrd Mat Mat Mat Fac Was Fac Used RIF Installer . | . . . . . . . Robots Hacked . | . . . . . . . Non-combat . | . . . . . . . Combat . | . . . . . . . Robot Hacks Applied . | . . . . . . . Relay Couplers Released 3 | . . . . . . 3 Programmers 3 | . . . . . . 3 Fabnet Peak Effective % . | . . . . . . . Robots Rewired . | . . . . . . . Allies Hacked 4 | . . . . . . 4 Hacks Repelled . | . . . . . . . Allies | -11 -10 -9 -8 -7 -7 -7 -------- Run | Yrd Mat Mat Mat Fac Was Fac Total Allies 20 | . . . . . 20 . Largest Group 18 | . . . . . 18 5 Highest-Rated Group 461 | . . . . . 461 144 Highest-Rated Ally 35 | . . . . . 35 31 Total Orders . | . . . . . . . Ally Attacks 161 | . . . . . 140 21 Total Damage 5371 | . . . . . 5034 337 Kills 17 | . . . . . 13 4 Allies Corrupted . | . . . . . . . Allies Melted . | . . . . . . . Intel | -11 -10 -9 -8 -7 -7 -7 ------- Run | Yrd Mat Mat Mat Fac Was Fac Robot Analysis Total . | . . . . . . . Derelict Logs Recovered . | . . . . . . . Drone Launches . | . . . . . . . Drone Recoveries . | . . . . . . . Exploration | -11 -10 -9 -8 -7 -7 -7 ------------- Run | Yrd Mat Mat Mat Fac Was Fac Turns Passed 4896 | 131 468 530 1113 1216 670 768 Spaces Moved 2497 | 79 253 273 561 672 393 266 Core 30 | 13 . . . . 16 1 Treads 2179 | 66 253 273 561 430 331 265 Legs 276 | . . . . 242 34 . Wheels . | . . . . . . . Hover 12 | . . . . . 12 . Flight . | . . . . . . . Fastest Speed 50 | 50 160 160 148 126 50 160 Average Speed 161 | 148 160 160 152 144 158 238 Slowest Speed 1000 | 160 160 160 160 260 350 1000 Overloaded Moves . | . . . . . . . Propulsion Burnouts . | . . . . . . . Robots Hopped . | . . . . . . . Cave-ins Triggered . | . . . . . . . Exploration Rate (%) 34 | 5 53 27 31 17 96 9 Regions Visited 6 Branch Regions . Pre-discovered Areas . | . . . . . . . Known Exits Taken . | . . . . . . . Unknown Exits Taken 4 | 1 1 1 1 . . . Scrap Searched . | . . . . . . . Spaces Dug . | . . . . . . . Terrain Destroyed 59 | . . 6 . 2 . 51 Melee . | . . . . . . . Projectile 2 | . . . . 2 . . AOE 57 | . . 6 . . . 51 Terrain Rammed . | . . . . . . . Walls Destroyed . | . . . . . . . Machines Disabled . | . . . . . . . Actions | -11 -10 -9 -8 -7 -7 -7 --------- Run | Yrd Mat Mat Mat Fac Was Fac Total 2976 | 89 286 323 688 823 440 327 Wait 97 | . 7 1 7 55 26 1 Move 2492 | 78 252 272 560 672 392 266 Hop . | . . . . . . . Pick Up 42 | 3 4 10 8 8 1 8 Fast Attach 30 | 6 1 2 5 5 8 3 Attach 14 | . . 1 5 6 1 1 Detach 4 | . . 1 1 1 . 1 Swap 33 | . 2 4 8 10 4 5 Drop 40 | . 3 4 9 12 8 4 Fire 114 | . 17 12 27 25 . 33 Melee 107 | . . 16 58 28 . 5 Ram . | . . . . . . . Kick 1 | . . . . 1 . . Crush 2 | 2 . . . . . . Escape Stasis . | . . . . . . . Rewire . | . . . . . . . Trap . | . . . . . . . Miscellaneous . | . . . . . . . Route ------- -11/Scrapyard -10/Materials -9/Materials (discovered 3 exits: *Mat / [*Min] / [*Sto]) -8/Materials -7/Factory -7/Waste -7/Factory History --------- Turn | Location | Event 7 | -11/Scrapyard | Discovered new exit (range 15) 132 | -11/Scrapyard | Entered Materials 323 | -10/Materials | Build established: Mutant 576 | -10/Materials | Discovered new exit (range 15) 600 | -10/Materials | Entered another Materials area 600 | -9/Materials | Evolved 2 slots: Power x1, Propulsion x1 659 | -9/Materials | Discovered new exit (range 16) 933 | -9/Materials | Discovered new exit (range 15) 1048 | -9/Materials | Discovered new exit (range 10) 1130 | -9/Materials | Entered another Materials area 1130 | -8/Materials | Evolved 2 slots: Propulsion x1, Utility x1 1285 | -8/Materials | Lost 4 parts (2p1n1w) 1742 | -8/Materials | Destroyed 8 combat bots 2237 | -8/Materials | Discovered new exit (range 4) 2243 | -8/Materials | Entered Factory 2243 | -7/Factory | Evolved 2 slots: Propulsion x1, Utility x1 2622 | -7/Factory | Build established: Hacker-Mutant 2740 | -7/Factory | Repaired Adv. Treads 3305 | -7/Factory | Lost 3 parts (1p1n1w) 3459 | -7/Factory | Sucked down chute 3459 | -7/Factory | Entered Waste 3460 | -7/Waste | Met a frightened Derelict 3471 | -7/Waste | Spotted C-40 Crusher 3477 | -7/Waste | Crushed by Compactor (1 part destroyed, 1 dropped) 3480 | -7/Waste | Crushed by Compactor (1 part destroyed, 2 dropped) 3497 | -7/Waste | Crushed by Compactor (1 part destroyed, 2 dropped) 3509 | -7/Waste | Crushed by Compactor (1 part destroyed, 1 dropped) 3512 | -7/Waste | Warlord forces began an assault 3514 | -7/Waste | Core integrity fell below 50% 3516 | -7/Waste | Crushed by Compactor (1 part destroyed, 2 dropped) 3519 | -7/Waste | Allies destroyed C-40 Crusher 3522 | -7/Waste | Spotted C-40 Crusher 3527 | -7/Waste | Allies destroyed C-40 Crusher 3546 | -7/Waste | Spotted C-40 Crusher 3547 | -7/Waste | Lost 6 parts (1p2n2u1w) 3550 | -7/Waste | Allies destroyed C-40 Crusher 3550 | -7/Waste | Spotted C-40 Crusher 3557 | -7/Waste | Allies destroyed C-40 Crusher 3583 | -7/Waste | Lost 5 allies 3856 | -7/Waste | Build established: Scavenger-Mutant 4044 | -7/Waste | Discovered new exit (range 15) 4129 | -7/Waste | Entered Factory 4129 | -7/Factory | Accompanied by 5 allies 4559 | -7/Factory | P-70 Sage assimilated allied S0-DL7(g) 4562 | -7/Factory | P-70 Sage assimilated allied H1-85R(g) 4694 | -7/Factory | P-60 Hacker assimilated allied KN-7JV(m) 4700 | -7/Factory | Core integrity fell below 20% 4897 | -7/Factory | Destroyed by Y-54 Guardian with Flak Gun Last Messages --------------- 04872_ K-01 Serf collects debris. 04879_ Antimatter Reactor destroyed. 04879_ Mic. Nuclear Core destroyed. 04879_ Hvy. Treads destroyed. 04880_ System corrupted: Heat flow error (+168). 04880_ R-06 Scavenger collects Wheel. 04882_ R-06 Scavenger collects Med. Matter Pod. 04883_ R-06 Scavenger destroyed. 04883_ K-01 Serf collects debris. 04883_ R-06 Scavenger collects Sml. Storage Unit. 04884_ K-01 Serf collects debris. 04887_ Minigun destroyed. 04888_ K-01 Serf collects debris. 04890_ K-01 Serf cleans the Subcomponent Replicator. 04891_ Lgt. Angular Momentum Engine destroyed. 04891_ K-01 Serf cleans the Subcomponent Replicator. 04896_ R-06 Scavenger collects Lgt. Ion Engine. Map ----- +----------------------------------------------------+ | ?????????????????????????????????????????????????? | | ?????????????????????????????????????????????????? | | ?????????????????????????????????????????????????? | | ?????????????????????????????????????????????????? | | ?????????????????????????????????????????????????? | | ?????????????????????????????????????????????????? | | ?????????????????????????????????????????????????? | | ?????????????????????????????????????????????????? | | ?????????????????????????????????????????????????? | | ?????????????????????????????????????????????????? | | ?????????????????????????????????????????????????? | | ?????????????????????????????????????????????????? | | ?????????????????????????????????????????????????? | | ?????????????????????????????????????????????????? | | ?????????????????????????????????????????????????? | | ?????????????????????????????????????????????????? | | ?????????????????????????????????????????????????? | | ???????????????????""""""????????????????????????? | | ?????????????????# ?????????????????????? | | ?????????????????# """""""""?????????????????????? | | ?????????????????+ ?????????????????????? | | ???????????????????""""""""??????????????????????? | | ???????????????????? ??????????????????????? | | ?????????????????????? ???????????????????????? | | ????????????????????####Y############ ??????? | | ????????????????????# @ // ??????? | | ????????????????????# k m ??????? | | ????????????????????# % k r ??????? | | ????????????????????# %kr k k ??????? | | ???????????????????#=|* %""" """""k ???????? | | ??????##############*%=""""" """"" ???????? | | ??????# k!!! "" """ ??????????????? | | ????????""""" # ?????????????? | | ??????# """"" # """ """""??????????????? | | ??????# """ # """ """"???????????????? | | ??????# # """ """????????????????? | | #?????# """"" [ # ????????????????? | | #?????# """"" # """"" """????????????????? | | #?????# """ + """"" ""?"???????????????? | | #?????# # """ ?????????????????????? | | #?????# # ??????????????????????? | | #?????# # """??????????????????????? | | #?????#[ # """"" "??????????????????? | | /#################+## """ "??????????????????? | | ! ! # # ?????????????????? | | = # !" """ ?????????????????????? | | % # %" """ ?????????????????????? | | ! # "% """ ?????????????????????? | | # " ?????????????????? | | #"""""" ^ ???????????????? | +----------------------------------------------------+ Best States ------------- Heat Dissipation 61 Energy Generation 31 Energy Capacity 400 Matter Stores 300 Matter Capacity 300 Sight Range 16 Robot Scan Range 14 Terrain Scan Range 16 Terrain Scan Density 10 ECM Strength 1 EM Shielding 2 Armor Coverage 450 Evasion (%) 55 Recoil Reduction 5 Offensive Hacking 20 Item Schematics ----------------- None Robot Schematics ------------------ None Fabricated ------------ Nothing Alien Tech Used ----------------- None Achievements -------------- Hey, That's Mine! The More The Merrier Challenges ------------ None Game ------ Seed ArcAdvancedCore Manual? 0 Play Time 01:10:30 Cumulative 5.0 hours Start 2024.04.07 @ 13:29:53 End 2024.04.07 @ 14:44:34 Sessions 1 Manual Loads 0 Difficulty Rogue Special Mode None Game No. 5 Rogue 5 Adventurer 0 Explorer 0 Win Type - Total 0 Types 0/0/0/0/0/0/0/0/0 Lore% 5 Gallery% 10 Achievement% 8 Wizard Run 0 Options --------- Layout 1 ASCII 0 Keyboard 1 Movement Numpad Keybinds 0 Fullscreen 1 Font 24/Smallcaps Map View 50x35 Zoom Use 0% Tactical HUD 1 Map Filters NONE Filters NONE Steam 1 RUN: 2aae7e15-303a-4fed-aeb1-f5e6aa786915